fUSD/lending_fUSD_20240618
["ID","MTS","AMOUNT","RATE_DAILY","PERIOD"]
[329788334,1718674279686,-666.38,0.00022465,3]
[329788335,1718674279696,-500.0,0.00022465,3]
[329788336,1718674279706,-315.38000795,0.00022465,3]
[329788337,1718674279716,-500.0,0.00022465,3]
[329788338,1718674279726,-500.0,0.00022465,3]
[329788339,1718674279735,-500.0,0.00022465,3]
[329788340,1718674279745,-500.0,0.00022465,3]
[329788341,1718674279754,-500.0,0.00022465,3]
[329788342,1718674279764,-500.0,0.00022465,3]
[329788343,1718674279774,-329.3,0.00022465,3]
[329788344,1718674279784,-500.0,0.00022465,3]
[329788345,1718674279794,-500.0,0.00022465,3]
[329788346,1718674279804,-500.0,0.00022465,3]
[329788347,1718674279814,-555.04,0.00022465,3]
[329788348,1718674279823,-823.84,0.00022465,3]
[329788349,1718674279833,-500.0,0.00022465,3]
[329788350,1718674279849,-500.0,0.00022465,3]
[329788351,1718674279858,-500.0,0.00022465,3]
[329788352,1718674279869,-500.0,0.00022465,3]
[329788353,1718674279878,-500.0,0.00022465,3]
[329788354,1718674279888,-500.0,0.00022465,3]
[329788355,1718674279898,-500.0,0.00022465,3]
[329788356,1718674279907,-500.0,0.00022465,3]
[329788357,1718674279917,-500.0,0.00022465,3]
[329788358,1718674279927,-500.0,0.00022465,3]
[329788359,1718674279937,-629.66,0.00022465,3]
[329788360,1718674279947,-500.0,0.00022465,3]
[329788361,1718674279956,-500.0,0.00022465,3]
[329788362,1718674279966,-500.0,0.00022465,3]
[329788363,1718674279976,-324.6869477,0.00022465,3]
[329788364,1718674279986,-498.34,0.00022465,3]
[329788365,1718674279995,-426.16,0.00022465,3]
[329788366,1718674280005,-500.0,0.00022465,3]
[329788367,1718674280015,-560.3,0.00022465,3]
[329788368,1718674280024,-500.0,0.00022465,3]
[329788369,1718674280034,-500.0,0.00022465,3]
[329788370,1718674280044,-500.0,0.00022465,3]
[329788371,1718674280054,-500.0,0.00022465,3]
[329788372,1718674280064,-622.63,0.00022465,3]
[329788373,1718674280075,-521.49634616,0.00022465,3]
[329788374,1718674280085,-500.0,0.00022465,2]
[329788375,1718674280099,-500.0,0.00022465,3]
[329788376,1718674280109,-500.0,0.00022465,3]
[329788377,1718674280118,-500.0,0.00022465,3]
[329788378,1718674280128,-500.0,0.00022465,3]
[329788379,1718674280137,-500.0,0.00022465,3]
[329788380,1718674280147,-500.0,0.00022465,3]
[329788381,1718674280330,-500.0,0.00022465,3]
[329788382,1718674280347,-500.0,0.00022465,3]
[329788383,1718674280357,-500.0,0.00022465,3]
[329788384,1718674280366,-500.0,0.00022465,3]
[329788385,1718674280375,-1227.14,0.00022465,3]
[329788386,1718674280384,-500.0,0.00022465,3]
[329788387,1718674280393,-500.0,0.00022465,3]
[329788388,1718674280402,-500.0,0.00022465,3]
[329788389,1718674280412,-500.0,0.00022465,3]
[329788390,1718674280421,-500.0,0.00022465,3]
[329788391,1718674280430,-500.0,0.00022465,3]
[329788392,1718674280440,-769.34,0.00022465,3]
[329788393,1718674280454,-500.0,0.00022465,3]
[329788394,1718674280463,-1137.37,0.00022465,3]
[329788395,1718674280473,-501.04223257,0.00022465,3]
[329788396,1718674280482,-500.0,0.00022465,3]
[329788397,1718674280492,-623.82,0.00022465,3]
[329788398,1718674280502,-500.0,0.00022465,3]
[329788399,1718674280511,-1897.66,0.00022465,3]
[329788400,1718674280520,-500.0,0.00022465,3]
[329788401,1718674280533,-500.0,0.00022465,3]
[329788402,1718674280543,-500.0,0.00022465,3]
[329788403,1718674280553,-500.0,0.00022465,3]
[329788404,1718674280563,-500.0,0.00022465,3]
[329788405,1718674280572,-500.0,0.00022465,3]
[329788406,1718674280581,-500.0,0.00022465,3]
[329788407,1718674280593,-500.0,0.00022465,3]
[329788408,1718674280604,-649.03,0.00022465,3]
[329788409,1718674280615,-500.0,0.00022465,3]
[329788410,1718674280623,-500.0,0.00022465,3]
[329788411,1718674280632,-500.0,0.00022465,3]
[329788412,1718674280641,-500.0,0.00022465,3]
[329788413,1718674280651,-428.96469285,0.00022465,3]
[329788414,1718674280659,-1269.86,0.00022465,3]
[329788415,1718674280668,-500.0,0.00022465,3]
[329788416,1718674280678,-500.0,0.00022465,3]
[329788417,1718674280688,-500.0,0.00022465,3]
[329788418,1718674280697,-500.0,0.00022465,3]
[329788419,1718674280706,-500.0,0.00022465,3]
[329788420,1718674280715,-500.0,0.00022465,3]
[329788421,1718674280725,-500.0,0.00022465,3]
[329788422,1718674280734,-500.0,0.00022465,3]
[329788423,1718674280743,-500.0,0.00022465,3]
[329788424,1718674280753,-500.0,0.00022465,3]
[329788425,1718674280762,-500.0,0.00022465,3]
[329788426,1718674280772,-184.6107189,0.00022465,3]
[329788427,1718674280781,-500.0,0.00022465,3]
[329788428,1718674280791,-500.0,0.00022465,3]
[329788429,1718674280800,-557.65,0.00022465,3]
[329788430,1718674280810,-500.0,0.00022465,3]
[329788431,1718674280820,-500.0,0.00022465,3]
[329788432,1718674280829,-500.0,0.00022465,3]
[329788433,1718674280838,-500.0,0.00022465,3]
[329788434,1718674280856,-972.39,0.00022465,3]
[329788435,1718674280865,-500.0,0.00022465,3]
[329788436,1718674280876,-1886.57,0.00022465,3]
[329788437,1718674280885,-500.0,0.00022465,3]
[329788438,1718674280894,-672.89,0.00022465,3]
[329788439,1718674280904,-500.0,0.00022465,3]
[329788440,1718674280914,-577.52825929,0.00022465,3]
[329788441,1718674280923,-1411.58004078,0.00022465,3]
[329788442,1718674280932,-535.57,0.00022465,3]
[329788443,1718674280941,-500.0,0.00022465,3]
[329788444,1718674280950,-500.0,0.00022465,2]
[329788445,1718674280960,-500.0,0.00022465,3]
[329788446,1718674280969,-700.42,0.00022465,3]
[329788447,1718674280979,-500.0,0.00022465,3]
[329788448,1718674280988,-500.0,0.00022465,3]
[329788449,1718674280997,-873.5,0.00022465,3]
[329788450,1718674281006,-500.0,0.00022465,3]
[329788451,1718674281016,-807.6,0.00022465,3]
[329788452,1718674281025,-500.0,0.00022465,3]
[329788453,1718674281034,-500.0,0.00022465,3]
[329788454,1718674281043,-896.7,0.00022465,3]
[329788455,1718674281052,-500.0,0.00022465,3]
[329788456,1718674281062,-624.3,0.00022465,3]
[329788457,1718674281071,-752.15,0.00022465,3]
[329788458,1718674281080,-500.0,0.00022465,3]
[329788459,1718674281090,-842.01,0.00022465,3]
[329788460,1718674281110,-500.0,0.00022465,3]
[329788461,1718674281119,-500.0,0.00022465,3]
[329788462,1718674281128,-334.27542794,0.00022465,3]
[329788463,1718674281138,-500.0,0.00022465,3]
[329788464,1718674281147,-500.0,0.00022465,3]
[329788465,1718674281156,-502.04,0.00022465,3]
[329788466,1718674281164,-1147.33,0.00022465,3]
[329788467,1718674281174,-1019.7,0.00022465,3]
[329788468,1718674281183,-500.0,0.00022465,3]
[329788469,1718674281192,-732.68,0.00022465,3]
[329788470,1718674281201,-500.0,0.00022465,3]
[329788471,1718674281211,-508.35524819,0.00022465,3]
[329788472,1718674281220,-500.0,0.00022465,3]
[329788473,1718674281230,-767.07,0.00022465,3]
[329788474,1718674281240,-513.08,0.00022465,3]
[329788475,1718674281250,-500.0,0.00022465,3]
[329788476,1718674281259,-500.0,0.00022465,3]
[329788477,1718674281269,-788.34,0.00022465,3]
[329788478,1718674281278,-730.12,0.00022465,3]
[329788479,1718674281288,-500.0,0.00022465,3]
[329788480,1718674281297,-500.0,0.00022465,3]
[329788481,1718674281307,-500.0,0.00022465,3]
[329788482,1718674281316,-1154.5,0.00022465,3]
[329788483,1718674281326,-500.0,0.00022465,3]
[329788484,1718674281335,-500.0,0.00022465,3]
[329788485,1718674281351,-500.0,0.00022465,3]
[329788486,1718674281361,-500.0,0.00022465,3]
[329788487,1718674281370,-500.0,0.00022465,3]
[329788488,1718674281379,-500.0,0.00022465,3]
[329788489,1718674281388,-497.35706433,0.00022465,3]
[329788490,1718674281397,-572.62,0.00022465,3]
[329788491,1718674281406,-500.0,0.00022465,3]
[329788492,1718674281416,-500.0,0.00022465,3]
[329788493,1718674281425,-205.54131689,0.00022465,3]
[329788494,1718674281433,-500.0,0.00022465,3]
[329788495,1718674281443,-500.0,0.00022465,3]
[329788496,1718674281453,-1069.23,0.00022465,3]
[329788497,1718674281462,-500.0,0.00022465,3]
[329788498,1718674281476,-1253.02,0.00022465,3]
[329788499,1718674281485,-500.0,0.00022465,3]
[329788500,1718674281494,-993.87,0.00022465,3]
[329788501,1718674281504,-500.0,0.00022465,3]
[329788502,1718674281514,-500.0,0.00022465,3]
[329788503,1718674281523,-500.0,0.00022465,3]
[329788504,1718674281532,-500.0,0.00022465,3]
[329788505,1718674281545,-500.0,0.00022465,3]
[329788506,1718674281555,-500.0,0.00022465,3]
[329788507,1718674281564,-500.0,0.00022465,3]
[329788508,1718674281574,-821.46,0.00022465,3]
[329788509,1718674281583,-500.0,0.00022465,3]
[329788510,1718674281598,-970.91,0.00022465,3]
[329788511,1718674281608,-500.0,0.00022465,3]
[329788512,1718674281618,-500.0,0.00022465,3]
[329788513,1718674281627,-500.0,0.00022465,3]
[329788514,1718674281637,-760.9,0.00022465,3]
[329788515,1718674281647,-418.25704772,0.00022465,3]
[329788516,1718674281656,-522.4,0.00022465,3]
[329788517,1718674281665,-500.0,0.00022465,3]
[329788518,1718674281674,-500.0,0.00022465,3]
[329788519,1718674281683,-500.0,0.00022465,3]
[329788520,1718674281693,-602.86,0.00022465,3]
[329788521,1718674281702,-1083.8,0.00022465,3]
[329788522,1718674281711,-500.0,0.00022465,3]
[329788523,1718674281721,-500.0,0.00022465,3]
[329788524,1718674281730,-500.0,0.00022465,3]
[329788525,1718674281739,-853.53,0.00022465,3]
[329788526,1718674281749,-500.0,0.00022465,3]
[329788527,1718674281759,-500.0,0.00022465,3]
[329788528,1718674281769,-603.93,0.00022465,3]
[329788529,1718674281778,-500.0,0.00022465,3]
[329788530,1718674281787,-500.0,0.00022465,3]
[329788531,1718674281798,-500.0,0.00022465,3]
[329788532,1718674281807,-500.0,0.00022465,3]
[329788533,1718674281816,-691.96,0.00022465,3]
[329788534,1718674281826,-500.0,0.00022465,3]
[329788535,1718674281836,-752.62,0.00022465,3]
[329788536,1718674281850,-500.0,0.00022465,3]
[329788537,1718674281859,-500.0,0.00022465,3]
[329788538,1718674281868,-1111.55,0.00022465,3]
[329788539,1718674281877,-500.0,0.00022465,3]
[329788540,1718674281886,-500.0,0.00022465,3]
[329788541,1718674281895,-617.23,0.00022465,3]
[329788542,1718674281903,-500.0,0.00022465,3]
[329788543,1718674281914,-500.0,0.00022465,3]
[329788544,1718674281924,-567.51,0.00022465,3]
[329788545,1718674281933,-500.0,0.00022465,3]
[329788546,1718674281943,-500.0,0.00022465,3]
[329788547,1718674281952,-954.24,0.00022465,3]
[329788548,1718674281962,-771.46,0.00022465,3]
[329788549,1718674281971,-500.0,0.00022465,3]
[329788550,1718674281981,-500.0,0.00022465,2]
[329788551,1718674281991,-903.49,0.00022465,3]
[329788552,1718674282000,-500.0,0.00022465,3]
[329788553,1718674282010,-500.0,0.00022465,3]
[329788554,1718674282019,-500.0,0.00022465,3]
[329788555,1718674282029,-301.25981547,0.00022465,3]
[329788556,1718674282039,-500.0,0.00022465,3]
[329788557,1718674282049,-1108.99,0.00022465,3]
[329788558,1718674282058,-500.0,0.00022465,3]
[329788559,1718674282068,-500.0,0.00022465,3]
[329788560,1718674282077,-500.0,0.00022465,3]
[329788561,1718674282087,-500.0,0.00022465,3]
[329788562,1718674282101,-500.0,0.00022465,3]
[329788563,1718674282110,-620.29,0.00022465,3]
[329788564,1718674282120,-500.0,0.00022465,3]
[329788565,1718674282129,-530.01422221,0.00022465,3]
[329788566,1718674282138,-775.57,0.00022465,3]
[329788567,1718674282148,-500.0,0.00022465,3]
[329788568,1718674282157,-500.0,0.00022465,3]
[329788569,1718674282167,-765.52,0.00022465,3]
[329788570,1718674282176,-500.0,0.00022465,3]
[329788571,1718674282186,-507.89,0.00022465,3]
[329788572,1718674282196,-500.0,0.00022465,3]
[329788573,1718674282205,-500.0,0.00022465,3]
[329788574,1718674282215,-601.58375754,0.00022465,3]
[329788575,1718674282224,-500.0,0.00022465,3]
[329788576,1718674282234,-500.0,0.00022465,3]
[329788577,1718674282244,-500.0,0.00022465,3]
[329788578,1718674282254,-500.0,0.00022465,3]
[329788579,1718674282263,-1111.18,0.00022465,3]
[329788580,1718674282272,-1222.44,0.00022465,3]
[329788581,1718674282281,-500.0,0.00022465,3]
[329788582,1718674282291,-500.0,0.00022465,3]
[329788583,1718674282301,-595.91184681,0.00022465,3]
[329788584,1718674282310,-825.38,0.00022465,3]
[329788585,1718674282319,-563.41,0.00022465,3]
[329788586,1718674282330,-612.33,0.00022465,3]
[329788587,1718674282339,-500.0,0.00022465,3]
[329788588,1718674282353,-242.22,0.00022465,3]
[329788589,1718674282362,-500.0,0.00022465,3]
[329788590,1718674282371,-744.35,0.00022465,3]
[329788591,1718674282380,-1168.2,0.00022465,3]
[329788592,1718674282389,-500.0,0.00022465,3]
[329788593,1718674282399,-500.0,0.00022465,3]
[329788594,1718674282409,-500.0,0.00022465,3]
[329788595,1718674282418,-500.0,0.00022465,3]
[329788596,1718674282429,-500.0,0.00022465,3]
[329788597,1718674282439,-1584.9,0.00022465,3]
[329788598,1718674282452,-500.0,0.00022465,3]
[329788599,1718674282462,-500.0,0.00022465,3]
[329788600,1718674282474,-500.0,0.00022465,3]
[329788601,1718674282483,-500.0,0.00022465,3]
[329788602,1718674282495,-1339.63,0.00022465,3]
[329788603,1718674282504,-500.0,0.00022465,3]
[329788604,1718674282514,-661.33,0.00022465,3]
[329788605,1718674282523,-500.0,0.00022465,3]
[329788606,1718674282534,-500.0,0.00022465,3]
[329788607,1718674282543,-500.0,0.00022465,3]
[329788608,1718674282553,-500.0,0.00022465,3]
[329788609,1718674282563,-500.0,0.00022465,3]
[329788610,1718674282573,-835.4,0.00022465,3]
[329788611,1718674282582,-526.96,0.00022465,3]
[329788612,1718674282591,-500.0,0.00022465,3]
[329788613,1718674282612,-500.0,0.00022465,3]
[329788614,1718674282621,-633.12043063,0.00022465,3]
[329788615,1718674282630,-1383.56,0.00022465,3]
[329788616,1718674282639,-500.0,0.00022465,3]
[329788617,1718674282648,-1147.94,0.00022465,3]
[329788618,1718674282657,-535.95621885,0.00022465,3]
[329788619,1718674282667,-937.65,0.00022465,3]
[329788620,1718674282676,-1499.69,0.00022465,3]
[329788621,1718674282685,-500.0,0.00022465,3]
[329788622,1718674282694,-500.0,0.00022465,3]
[329788623,1718674282704,-500.0,0.00022465,3]
[329788624,1718674282713,-500.0,0.00022465,3]
[329788625,1718674282722,-500.0,0.00022465,3]
[329788626,1718674282731,-984.83,0.00022465,3]
[329788627,1718674282739,-500.0,0.00022465,3]
[329788628,1718674282748,-500.0,0.00022465,3]
[329788629,1718674282758,-500.17,0.00022465,3]
[329788630,1718674282768,-720.19,0.00022465,3]
[329788631,1718674282778,-376.56,0.00022465,3]
[329788632,1718674282788,-520.43,0.00022465,3]
[329788633,1718674282797,-500.0,0.00022465,3]
[329788634,1718674282807,-1244.19,0.00022465,3]
[329788635,1718674282817,-14271.55,0.00022465,3]
[329788636,1718674282826,-854.25,0.00022465,3]
[329788637,1718674282835,-500.0,0.00022465,3]
[329788638,1718674282852,-500.0,0.00022465,3]
[329788639,1718674282862,-528.92,0.00022465,3]
[329788640,1718674282871,-500.0,0.00022465,3]
[329788641,1718674282881,-500.0,0.00022465,3]
[329788642,1718674282891,-753.1,0.00022465,3]
[329788643,1718674282900,-500.0,0.00022465,3]
[329788644,1718674282909,-500.0,0.00022465,3]
[329788645,1718674282919,-324.26699047,0.00022465,3]
[329788646,1718674282928,-1017.17,0.00022465,3]
[329788647,1718674282937,-500.0,0.00022465,3]
[329788648,1718674282946,-645.11,0.00022465,3]
[329788649,1718674282956,-500.0,0.00022465,3]
[329788650,1718674282966,-500.0,0.00022465,3]
[329788651,1718674282975,-759.95,0.00022465,3]
[329788652,1718674282984,-500.0,0.00022465,3]
[329788653,1718674282993,-995.5,0.00022465,3]
[329788654,1718674283003,-500.0,0.00022465,3]
[329788655,1718674283012,-500.0,0.00022465,3]
[329788656,1718674283022,-736.32,0.00022465,3]
[329788657,1718674283031,-500.0,0.00022465,3]
[329788658,1718674283041,-500.0,0.00022465,3]
[329788659,1718674283050,-993.92,0.00022465,3]
[329788660,1718674283060,-971.37,0.00022465,3]
[329788661,1718674283069,-417.10750753,0.00022465,3]
[329788662,1718674283078,-500.0,0.00022465,3]
[329788663,1718674283087,-500.0,0.00022465,3]
[329788664,1718674283102,-499.64894992,0.00022465,3]
[329788665,1718674283111,-1037.46,0.00022465,3]
[329788666,1718674283120,-525.0498898,0.00022465,3]
[329788667,1718674283129,-500.0,0.00022465,3]
[329788668,1718674283138,-500.0,0.00022465,3]
[329788669,1718674283147,-500.0,0.00022465,3]
[329788670,1718674283156,-500.0,0.00022465,3]
[329788671,1718674283166,-500.0,0.00022465,3]
[329788672,1718674283175,-1039.13,0.00022465,3]
[329788673,1718674283184,-500.0,0.00022465,3]
[329788674,1718674283194,-2898.2,0.00022465,3]
[329788675,1718674283203,-500.0,0.00022465,3]
[329788676,1718674283213,-500.0,0.00022465,3]
[329788677,1718674283222,-802.06,0.00022465,3]
[329788678,1718674283231,-500.0,0.00022465,3]
[329788679,1718674283240,-1376.06,0.00022465,3]
[329788680,1718674283250,-500.0,0.00022465,3]
[329788681,1718674283259,-6253.28,0.00022465,3]
[329788682,1718674283268,-500.0,0.00022465,3]
[329788683,1718674283277,-1428.23,0.00022465,3]
[329788684,1718674283287,-500.0,0.00022465,3]
[329788685,1718674283296,-500.0,0.00022465,3]
[329788686,1718674283305,-734.95,0.00022465,3]
[329788687,1718674283315,-500.0,0.00022465,3]
[329788688,1718674283324,-527.54,0.00022465,3]
[329788689,1718674283333,-1348.04,0.00022465,3]
[329788690,1718674283342,-500.0,0.00022465,3]
[329788691,1718674283359,-5610.58,0.00022465,3]
[329788692,1718674283538,-500.0,0.00022465,3]
[329788693,1718674283549,-2774.12,0.00022465,3]
[329788694,1718674283559,-519.32,0.00022465,3]
[329788695,1718674283569,-500.0,0.00022465,3]
[329788696,1718674283579,-500.0,0.00022465,3]
[329788697,1718674283588,-500.0,0.00022465,3]
[329788698,1718674283606,-1101.33,0.00022465,3]
[329788699,1718674283615,-500.0,0.00022465,3]
[329788700,1718674283623,-1627.28,0.00022465,3]
[329788701,1718674283632,-790.14,0.00022465,3]
[329788702,1718674283642,-3008.62,0.00022465,3]
[329788703,1718674283651,-1457.44,0.00022465,3]
[329788704,1718674283660,-575.24,0.00022465,3]
[329788705,1718674283669,-199.83692998,0.00022465,3]
[329788706,1718674283679,-500.0,0.00022465,3]
[329788707,1718674283688,-760.35,0.00022465,3]
[329788708,1718674283697,-500.0,0.00022465,3]
[329788709,1718674283706,-1208.34,0.00022465,3]
[329788710,1718674283715,-500.0,0.00022465,3]
[329788711,1718674283724,-4848.48,0.00022465,3]
[329788712,1718674283734,-1589.85,0.00022465,3]
[329788713,1718674283743,-589.3,0.00022465,3]
[329788714,1718674283753,-805.12,0.00022465,3]
[329788715,1718674283762,-500.0,0.00022465,3]
[329788716,1718674283771,-662.08,0.00022465,3]
[329788717,1718674283781,-1221.18,0.00022465,3]
[329788718,1718674283794,-2146.67,0.00022465,3]
[329788719,1718674283806,-1335.51,0.00022465,3]
[329788720,1718674283817,-500.0,0.00022465,3]
[329788721,1718674283828,-12271.93,0.00022465,3]
[329788722,1718674283839,-15922.39,0.00022465,3]
[329788723,1718674283861,-500.0,0.00022465,3]
[329788724,1718674283871,-510.08775457,0.00022465,3]
[329788725,1718674283882,-727.62,0.00022465,3]
[329788726,1718674283894,-1412.3,0.00022465,3]
[329788727,1718674283904,-589.39,0.00022465,3]
[329788728,1718674283915,-500.0,0.00022465,3]
[329788729,1718674283925,-571.59,0.00022465,3]
[329788730,1718674283935,-500.0,0.00022465,3]
[329788731,1718674283946,-4635.4,0.00022465,3]
[329788732,1718674283956,-571.25,0.00022465,3]
[329788733,1718674283966,-500.0,0.00022465,3]
[329788734,1718674283976,-500.0,0.00022465,3]
[329788735,1718674283987,-1780.73,0.00022465,3]
[329788736,1718674283999,-33245.11,0.00022465,3]
[329788737,1718674284009,-534.28502876,0.00022465,3]
[329788738,1718674284019,-500.0,0.00022465,3]
[329788739,1718674284028,-500.0,0.00022465,3]
[329788740,1718674284038,-839.45,0.00022465,3]
[329788741,1718674284048,-5540.37,0.00022465,3]
[329788742,1718674284058,-644.0,0.00022465,3]
[329788743,1718674284068,-663.34,0.00022465,3]
[329788744,1718674284077,-500.0,0.00022465,3]
[329788745,1718674284088,-1394.47,0.00022465,3]
[329788746,1718674284106,-669.82,0.00022465,3]
[329788747,1718674284117,-1724.01,0.00022465,3]
[329788748,1718674284126,-510.58472244,0.00022465,3]
[329788749,1718674284137,-500.0,0.00022465,3]
[329788750,1718674284148,-500.0,0.00022465,3]
[329788751,1718674284159,-500.0,0.00022465,3]
[329788752,1718674284170,-2270.57,0.00022465,3]
[329788753,1718674284180,-579.21,0.00022465,3]
[329788754,1718674284191,-30968.67,0.00022465,3]
[329788755,1718674284202,-606.0,0.00022465,3]
[329788756,1718674284212,-1615.44,0.00022465,3]
[329788757,1718674284222,-4248.96,0.00022465,3]
[329788758,1718674284233,-500.0,0.00022465,3]
[329788759,1718674284243,-554.16,0.00022465,3]
[329788760,1718674284252,-500.0,0.00022465,3]
[329788761,1718674284263,-3831.34,0.00022465,3]
[329788762,1718674284273,-754.06,0.00022465,3]
[329788763,1718674284283,-339.5984477,0.00022465,3]
[329788764,1718674284293,-500.0,0.00022465,3]
[329788765,1718674284303,-944.53,0.00022465,3]
[329788766,1718674284313,-500.0,0.00022465,3]
[329788767,1718674284323,-500.0,0.00022465,3]
[329788768,1718674284333,-985.58,0.00022465,3]
[329788769,1718674284343,-500.0,0.00022465,3]
[329788770,1718674284359,-1052.32,0.00022465,3]
[329788771,1718674284368,-1396.24,0.00022465,3]
[329788772,1718674284378,-3399.39,0.00022465,3]
[329788773,1718674284388,-595.25,0.00022465,3]
[329788774,1718674284397,-650.09,0.00022465,3]
[329788775,1718674284406,-749.22,0.00022465,3]
[329788776,1718674284415,-500.0,0.00022465,3]
[329788777,1718674284425,-500.0,0.00022465,3]
[329788778,1718674284434,-881.32,0.00022465,3]
[329788779,1718674284446,-500.0,0.00022465,3]
[329788780,1718674284462,-2852.36,0.00022465,3]
[329788781,1718674284473,-1061.15,0.00022465,3]
[329788782,1718674284484,-7554.41,0.00022465,3]
[329788783,1718674284496,-500.0,0.00022465,3]
[329788784,1718674284506,-156.05,0.00022465,3]
[329788785,1718674284516,-500.0,0.00022465,3]
[329788786,1718674284526,-500.0,0.00022465,3]
[329788787,1718674284537,-5772.4,0.00022465,3]
[329788788,1718674284548,-1505.88,0.00022465,3]
[329788789,1718674284560,-500.0,0.00022465,3]
[329788790,1718674284570,-1149.98,0.00022465,3]
[329788791,1718674284580,-5467.78,0.00022465,3]
[329788792,1718674284590,-500.0,0.00022465,3]
[329788793,1718674284606,-500.0,0.00022465,3]
[329788794,1718674284616,-725.06,0.00022465,3]
[329788795,1718674284626,-500.0,0.00022465,3]
[329788796,1718674284637,-1954.75,0.00022465,3]
[329788797,1718674284646,-500.0,0.00022465,3]
[329788798,1718674284656,-6906.22,0.00022465,3]
[329788799,1718674284666,-500.0,0.00022465,3]
[329788800,1718674284675,-368.91,0.00022465,3]
[329788801,1718674284685,-5172.93,0.00022465,3]
[329788802,1718674284695,-2970.08,0.00022465,3]
[329788803,1718674284705,-869.78,0.00022465,3]
[329788804,1718674284715,-500.0,0.00022465,3]
[329788805,1718674284725,-500.0,0.00022465,3]
[329788806,1718674284735,-500.0,0.00022465,3]
[329788807,1718674284745,-3267.75,0.00022465,3]
[329788808,1718674284755,-500.0,0.00022465,3]
[329788809,1718674284764,-500.0,0.00022465,3]
[329788810,1718674284774,-500.0,0.00022465,3]
[329788811,1718674284783,-9080.48,0.00022465,3]
[329788812,1718674284793,-500.0,0.00022465,3]
[329788813,1718674284803,-1001.47,0.00022465,3]
[329788814,1718674284812,-4901.24,0.00022465,3]
[329788815,1718674284822,-35868.9,0.00022465,3]
[329788816,1718674284831,-837.96,0.00022465,3]
[329788817,1718674284841,-2049.11,0.00022465,3]
[329788818,1718674284856,-1326.19,0.00022465,3]
[329788819,1718674284866,-728.43,0.00022465,3]
[329788820,1718674284876,-500.0,0.00022465,3]
[329788821,1718674284885,-1438.27,0.00022465,3]
[329788822,1718674284894,-962.36,0.00022465,3]
[329788823,1718674284904,-505.43998005,0.00022465,3]
[329788824,1718674284913,-1674.69,0.00022465,3]
[329788825,1718674284922,-500.0,0.00022465,3]
[329788826,1718674284932,-1456.4,0.00022465,3]
[329788827,1718674284942,-5253.29,0.00022465,3]
[329788828,1718674284952,-2356.76,0.00022465,3]
[329788829,1718674284962,-1332.69,0.00022465,3]
[329788830,1718674284972,-3282.61,0.00022465,3]
[329788831,1718674284981,-500.0,0.00022465,3]
[329788832,1718674284991,-741.52,0.00022465,3]
[329788833,1718674285001,-10743.9,0.00022465,3]